[Event "*** Titled Tuesday Blitz"]
[Site "Chess.com"]
[Date "2018.05.01"]
[Round "6"]
[White "nubair1198"]
[Black "gmcorrales"]
[Result "0-1"]
[WhiteElo "2538"]
[BlackElo "2738"]
[TimeControl "180+2"]
[EndTime "14:18:21 PDT"]
[Termination "gmcorrales won by resignation"]

1. d4 {[%clk 0:03:01.9]} 1... Nf6 {[%clk 0:02:59.3]} 2. c4 {[%clk 0:03:01.3]}
2... g6 {[%clk 0:03:00.2]} 3. Nc3 {[%clk 0:02:59.8]} 3... d5 {[%clk 0:03:00.8]}
4. Nf3 {[%clk 0:03:00.4]} 4... Bg7 {[%clk 0:03:01.2]} 5. h4 {[%clk 0:03:01.4]}
5... h5 {[%clk 0:02:56.3]} 6. Bg5 {[%clk 0:03:00.2]} 6... dxc4 {[%clk
0:02:48.1]} 7. e4 {[%clk 0:03:00.2]} 7... O-O {[%clk 0:02:47.7]} 8. Bxc4 {[%clk
0:03:00]} 8... c6 {[%clk 0:02:48.1]} 9. Ne5 {[%clk 0:03:00.7]} 9... b5 {[%clk
0:02:30.2]} 10. Bb3 {[%clk 0:02:48.9]} 10... b4 {[%clk 0:02:31.1]} 11. Bxf6
{[%clk 0:02:42.2]} 11... exf6 {[%clk 0:02:30.2]} 12. Nxg6 {[%clk 0:02:42.7]}
12... bxc3 {[%clk 0:02:30.2]} 13. Nxf8 {[%clk 0:02:29.6]} 13... cxb2 {[%clk
0:02:28.5]} 14. Rb1 {[%clk 0:02:30.7]} 14... Qa5+ {[%clk 0:02:28]} 15. Kf1
{[%clk 0:02:28.5]} 15... Kxf8 {[%clk 0:02:25.1]} 16. d5 {[%clk 0:02:23.8]} 16...
Ba6+ {[%clk 0:02:22.6]} 17. Kg1 {[%clk 0:02:24.4]} 17... c5 {[%clk 0:02:23.5]}
18. Rxb2 {[%clk 0:02:19.2]} 18... c4 {[%clk 0:02:21.4]} 19. Bxc4 {[%clk
0:02:10.5]} 19... Bxc4 {[%clk 0:02:19.7]} 20. Rc2 {[%clk 0:02:02.7]} 20... Ba6
{[%clk 0:02:14.3]} 21. Qxh5 {[%clk 0:01:58.6]} 21... Nd7 {[%clk 0:02:14.3]} 22.
Qf5 {[%clk 0:01:58.2]} 22... Bd3 {[%clk 0:02:11.7]} 23. Rc1 {[%clk 0:01:45.4]}
23... Qd2 {[%clk 0:02:12.2]} 24. Rd1 {[%clk 0:01:44.6]} 24... Qxd1+ {[%clk
0:02:12]} 25. Kh2 {[%clk 0:01:45.7]} 25... Qa4 {[%clk 0:02:12.7]} 26. f3 {[%clk
0:01:42.4]} 26... Ne5 {[%clk 0:02:06.9]} 27. h5 {[%clk 0:01:40.8]} 27... Qc2
{[%clk 0:02:06.7]} 28. h6 {[%clk 0:01:40.1]} 28... Bxh6 {[%clk 0:02:07.7]} 29.
Qxf6 {[%clk 0:01:40.9]} 29... Bg7 {[%clk 0:02:08]} 30. Qd6+ {[%clk 0:01:41.3]}
30... Kg8 {[%clk 0:02:08.6]} 31. Kg3 {[%clk 0:01:42.1]} 31... Qd2 {[%clk
0:02:05.9]} 32. Rh5 {[%clk 0:01:42.5]} 32... Qe1+ {[%clk 0:02:05.9]} 33. Kh2
{[%clk 0:01:43]} 33... Ng6 {[%clk 0:02:01.3]} 34. Qa3 {[%clk 0:01:32.3]} 34...
Qd2 {[%clk 0:01:57.5]} 0-1

[Event "*** Titled Tuesday Blitz"]
[Site "Chess.com"]
[Date "2018.05.01"]
[Round "6"]
[White "sergeikim"]
[Black "r31415"]
[Result "1-0"]
[WhiteElo "2368"]
[BlackElo "2199"]
[TimeControl "180+2"]
[EndTime "14:18:25 PDT"]
[Termination "sergeikim won by resignation"]

1. d4 {[%clk 0:03:00.9]} 1... d6 {[%clk 0:02:06.8]} 2. c4 {[%clk 0:03:01.4]}
2... f5 {[%clk 0:02:07.2]} 3. g3 {[%clk 0:02:58.2]} 3... Nf6 {[%clk 0:02:08.4]}
4. Bg2 {[%clk 0:02:58.9]} 4... g6 {[%clk 0:02:09.9]} 5. Nf3 {[%clk 0:02:59.1]}
5... Bg7 {[%clk 0:02:11.3]} 6. O-O {[%clk 0:02:59.8]} 6... O-O {[%clk
0:02:12.9]} 7. Nc3 {[%clk 0:03:00.3]} 7... c6 {[%clk 0:02:14.5]} 8. Qc2 {[%clk
0:02:58.4]} 8... Qc7 {[%clk 0:02:12.8]} 9. e4 {[%clk 0:02:58.3]} 9... e5 {[%clk
0:02:12.7]} 10. exf5 {[%clk 0:02:48.4]} 10... Bxf5 {[%clk 0:02:09.8]} 11. Qb3
{[%clk 0:02:49.2]} 11... Na6 {[%clk 0:01:45.5]} 12. c5+ {[%clk 0:02:19.9]} 12...
d5 {[%clk 0:01:39.8]} 13. Nxe5 {[%clk 0:02:11.8]} 13... Nxc5 {[%clk 0:01:26.6]}
14. dxc5 {[%clk 0:02:08]} 14... Qxe5 {[%clk 0:01:27.4]} 15. Qxb7 {[%clk
0:02:05]} 15... Rac8 {[%clk 0:01:21.2]} 16. Bf4 {[%clk 0:01:59]} 16... Qd4
{[%clk 0:01:18.6]} 17. Bd6 {[%clk 0:01:56.9]} 17... Rf7 {[%clk 0:01:16.3]} 18.
Qa6 {[%clk 0:01:51]} 18... Bd3 {[%clk 0:01:15.9]} 19. Qxc8+ {[%clk 0:01:44.9]}
19... Bf8 {[%clk 0:01:13.9]} 20. Rad1 {[%clk 0:01:30.7]} 20... Ng4 {[%clk
0:00:52.7]} 21. Rxd3 {[%clk 0:01:25.1]} 21... Qxd3 {[%clk 0:00:53.6]} 22. Qxg4
{[%clk 0:01:24.8]} 1-0

[Event "*** Titled Tuesday Blitz"]
[Site "Chess.com"]
[Date "2018.05.01"]
[Round "6"]
[White "Synctel"]
[Black "Caisachess"]
[Result "1-0"]
[WhiteElo "1914"]
[BlackElo "2146"]
[TimeControl "180+2"]
[EndTime "14:18:31 PDT"]
[Termination "Synctel won by checkmate"]

1. e4 {[%clk 0:02:51.8]} 1... e5 {[%clk 0:03:00.1]} 2. Nf3 {[%clk 0:02:51.8]}
2... Nc6 {[%clk 0:03:00.6]} 3. Bc4 {[%clk 0:02:52.5]} 3... Nf6 {[%clk
0:03:01.1]} 4. d4 {[%clk 0:02:52.2]} 4... exd4 {[%clk 0:03:01.3]} 5. e5 {[%clk
0:02:53.3]} 5... d5 {[%clk 0:03:01.4]} 6. Bb5 {[%clk 0:02:54.6]} 6... Ne4 {[%clk
0:03:01.9]} 7. Nxd4 {[%clk 0:02:56.1]} 7... Bd7 {[%clk 0:03:02.4]} 8. Bxc6
{[%clk 0:02:57.6]} 8... bxc6 {[%clk 0:03:03.1]} 9. O-O {[%clk 0:02:59.1]} 9...
Bc5 {[%clk 0:03:03.5]} 10. f3 {[%clk 0:03:00.3]} 10... Ng5 {[%clk 0:03:02.9]}
11. f4 {[%clk 0:03:01.7]} 11... Ne4 {[%clk 0:03:03.8]} 12. Be3 {[%clk
0:03:03.2]} 12... Bb6 {[%clk 0:03:04.1]} 13. Nd2 {[%clk 0:01:47.5]} 13... c5
{[%clk 0:03:01.7]} 14. N4b3 {[%clk 0:01:39.1]} 14... Nxd2 {[%clk 0:02:40.4]} 15.
Qxd2 {[%clk 0:01:35.9]} 15... d4 {[%clk 0:02:41]} 16. Bf2 {[%clk 0:01:36.7]}
16... Bc6 {[%clk 0:02:41]} 17. f5 {[%clk 0:01:15.5]} 17... Qd5 {[%clk
0:02:41.1]} 18. Qg5 {[%clk 0:01:15.7]} 18... Kd7 {[%clk 0:02:38.3]} 19. c4
{[%clk 0:01:04.2]} 19... Qxc4 {[%clk 0:02:35.5]} 20. e6+ {[%clk 0:00:46.8]}
20... fxe6 {[%clk 0:02:35.7]} 21. Qxg7+ {[%clk 0:00:41.8]} 21... Kd6 {[%clk
0:02:30.2]} 22. fxe6 {[%clk 0:00:27.7]} 22... Bd5 {[%clk 0:02:10]} 23. Qd7+
{[%clk 0:00:19.9]} 23... Ke5 {[%clk 0:02:08.7]} 24. Rae1+ {[%clk 0:00:17.4]}
24... Be4 {[%clk 0:02:08.5]} 25. Bg3# {[%clk 0:00:18.3]} 1-0

[Event "*** Titled Tuesday Blitz"]
[Site "Chess.com"]
[Date "2018.05.01"]
[Round "6"]
[White "Kawhi_Leonard2"]
[Black "alturas_pacificas"]
[Result "1-0"]
[WhiteElo "2178"]
[BlackElo "2141"]
[TimeControl "180+2"]
[EndTime "14:18:57 PDT"]
[Termination "Kawhi_Leonard2 won by resignation"]

1. e4 {[%clk 0:03:01.9]} 1... e5 {[%clk 0:03:00.5]} 2. Nf3 {[%clk 0:03:02.9]}
2... Nf6 {[%clk 0:03:01.8]} 3. Nxe5 {[%clk 0:03:02.7]} 3... d6 {[%clk
0:03:02.7]} 4. Nf3 {[%clk 0:03:04.2]} 4... Nxe4 {[%clk 0:03:03.9]} 5. d4 {[%clk
0:03:05.5]} 5... d5 {[%clk 0:03:05.2]} 6. Bd3 {[%clk 0:03:06.6]} 6... Bd6 {[%clk
0:03:06.6]} 7. O-O {[%clk 0:03:07.5]} 7... O-O {[%clk 0:03:08]} 8. c4 {[%clk
0:03:08.9]} 8... c6 {[%clk 0:03:09.4]} 9. cxd5 {[%clk 0:03:10]} 9... cxd5 {[%clk
0:03:11.3]} 10. Nc3 {[%clk 0:03:11.2]} 10... Nxc3 {[%clk 0:03:12.7]} 11. bxc3
{[%clk 0:03:12.5]} 11... Bg4 {[%clk 0:03:14.3]} 12. Rb1 {[%clk 0:03:13.2]} 12...
Nd7 {[%clk 0:03:14]} 13. Rb5 {[%clk 0:03:06.4]} 13... Nb6 {[%clk 0:03:14.3]} 14.
a4 {[%clk 0:03:06.1]} 14... a6 {[%clk 0:02:03.6]} 15. Rb1 {[%clk 0:03:00.3]}
15... Rb8 {[%clk 0:01:52.3]} 16. h3 {[%clk 0:02:33.5]} 16... Bh5 {[%clk
0:01:52.3]} 17. Re1 {[%clk 0:02:27.7]} 17... Nc4 {[%clk 0:01:53.1]} 18. Qc2
{[%clk 0:01:44.2]} 18... Bxf3 {[%clk 0:01:48.8]} 19. gxf3 {[%clk 0:01:24.5]}
19... Qh4 {[%clk 0:01:49.2]} 20. Bf1 {[%clk 0:01:21.7]} 20... Rbe8 {[%clk
0:01:36.6]} 21. Rxe8 {[%clk 0:01:13.2]} 21... Rxe8 {[%clk 0:01:37.1]} 22. Rxb7
{[%clk 0:01:12.5]} 22... Re6 {[%clk 0:01:36.7]} 23. Qf5 {[%clk 0:00:49.6]} 23...
h5 {[%clk 0:01:01]} 24. Qxf7+ {[%clk 0:00:49]} 1-0

[Event "*** Titled Tuesday Blitz"]
[Site "Chess.com"]
[Date "2018.05.01"]
[Round "6"]
[White "AndrewDGreen"]
[Black "akretchetov"]
[Result "0-1"]
[WhiteElo "2166"]
[BlackElo "2317"]
[TimeControl "180+2"]
[EndTime "14:19:02 PDT"]
[Termination "akretchetov won by resignation"]

1. d4 {[%clk 0:03:01.9]} 1... d5 {[%clk 0:03:00.3]} 2. Bf4 {[%clk 0:03:02.3]}
2... c5 {[%clk 0:02:58]} 3. e3 {[%clk 0:03:02.8]} 3... cxd4 {[%clk 0:02:58.1]}
4. exd4 {[%clk 0:03:03.8]} 4... Nc6 {[%clk 0:02:58.8]} 5. c3 {[%clk 0:03:02.4]}
5... g6 {[%clk 0:02:54.6]} 6. Nd2 {[%clk 0:03:02.8]} 6... Bg7 {[%clk 0:02:55.5]}
7. Bd3 {[%clk 0:03:03.1]} 7... Nh6 {[%clk 0:02:55]} 8. Ngf3 {[%clk 0:03:02.8]}
8... O-O {[%clk 0:02:55.7]} 9. O-O {[%clk 0:03:03]} 9... f6 {[%clk 0:02:56.8]}
10. Re1 {[%clk 0:03:01.6]} 10... Nf7 {[%clk 0:02:57.6]} 11. Bg3 {[%clk
0:02:30.5]} 11... e5 {[%clk 0:02:58.5]} 12. dxe5 {[%clk 0:02:31.7]} 12... fxe5
{[%clk 0:02:59.6]} 13. Bb5 {[%clk 0:02:30.1]} 13... e4 {[%clk 0:02:58.9]} 14.
Bxc6 {[%clk 0:02:24.2]} 14... bxc6 {[%clk 0:02:51.8]} 15. Nd4 {[%clk 0:02:23.4]}
15... Bd7 {[%clk 0:02:41.1]} 16. N2b3 {[%clk 0:02:22.9]} 16... Ne5 {[%clk
0:02:36]} 17. Nc5 {[%clk 0:02:12.5]} 17... Qe7 {[%clk 0:02:25.6]} 18. Bxe5
{[%clk 0:02:00.8]} 18... Bxe5 {[%clk 0:02:26.1]} 19. Nxd7 {[%clk 0:01:59.9]}
19... Qxd7 {[%clk 0:02:01.7]} 20. Qa4 {[%clk 0:01:49.1]} 20... Rad8 {[%clk
0:01:56.1]} 21. Re2 {[%clk 0:01:29.3]} 21... Rf6 {[%clk 0:01:47.1]} 22. Rd1
{[%clk 0:01:12.3]} 22... Rdf8 {[%clk 0:01:41.5]} 23. Nb3 {[%clk 0:00:46.1]}
23... Qf7 {[%clk 0:01:36.5]} 24. Rdd2 {[%clk 0:00:40.2]} 24... e3 {[%clk
0:01:33.3]} 25. Rd3 {[%clk 0:00:24.9]} 25... Rxf2 {[%clk 0:01:31.8]} 26. Re1
{[%clk 0:00:23.2]} 26... Rf1+ {[%clk 0:01:31.7]} 0-1

[Event "*** Titled Tuesday Blitz"]
[Site "Chess.com"]
[Date "2018.05.01"]
[Round "6"]
[White "Flawless2018"]
[Black "MITerryble"]
[Result "0-1"]
[WhiteElo "2487"]
[BlackElo "2683"]
[TimeControl "180+2"]
[EndTime "14:19:16 PDT"]
[Termination "MITerryble won by checkmate"]

1. Nf3 {[%clk 0:02:54.8]} 1... Nf6 {[%clk 0:03:00.7]} 2. b3 {[%clk 0:02:55.6]}
2... d5 {[%clk 0:03:00.4]} 3. Bb2 {[%clk 0:02:55.8]} 3... c6 {[%clk 0:03:01.6]}
4. e3 {[%clk 0:02:55.7]} 4... Bg4 {[%clk 0:03:03]} 5. Be2 {[%clk 0:02:56.3]}
5... Nbd7 {[%clk 0:03:04.3]} 6. O-O {[%clk 0:02:55.1]} 6... Qc7 {[%clk
0:03:05.5]} 7. d4 {[%clk 0:02:55.1]} 7... e6 {[%clk 0:03:06.4]} 8. Nbd2 {[%clk
0:02:55.5]} 8... Bd6 {[%clk 0:03:06.9]} 9. h3 {[%clk 0:02:53.7]} 9... Bh5 {[%clk
0:03:07.8]} 10. a4 {[%clk 0:02:51.4]} 10... O-O {[%clk 0:03:07.3]} 11. a5 {[%clk
0:02:51.9]} 11... Rfe8 {[%clk 0:03:06.7]} 12. a6 {[%clk 0:02:49.7]} 12... b5
{[%clk 0:03:06.2]} 13. c4 {[%clk 0:02:16.8]} 13... Rab8 {[%clk 0:02:57.6]} 14.
c5 {[%clk 0:02:01.1]} 14... Bf8 {[%clk 0:02:58]} 15. b4 {[%clk 0:02:02.1]} 15...
Ne4 {[%clk 0:02:55.9]} 16. Nxe4 {[%clk 0:01:55.3]} 16... dxe4 {[%clk 0:02:57.8]}
17. Nd2 {[%clk 0:01:56.4]} 17... Bxe2 {[%clk 0:02:55.3]} 18. Qxe2 {[%clk
0:01:58.3]} 18... f5 {[%clk 0:02:55.6]} 19. Nb3 {[%clk 0:01:19.4]} 19... Nf6
{[%clk 0:02:56.3]} 20. f4 {[%clk 0:00:49.6]} 20... Nd5 {[%clk 0:02:42.2]} 21.
Qd2 {[%clk 0:00:46.5]} 21... Be7 {[%clk 0:02:40.1]} 22. Kh1 {[%clk 0:00:31.2]}
22... g5 {[%clk 0:02:39.3]} 23. g3 {[%clk 0:00:29.9]} 23... Kh8 {[%clk
0:02:39.1]} 24. Rg1 {[%clk 0:00:27.4]} 24... Rg8 {[%clk 0:02:40]} 25. Na5 {[%clk
0:00:18]} 25... Rg6 {[%clk 0:02:38.4]} 26. Rg2 {[%clk 0:00:17.8]} 26... Rbg8
{[%clk 0:02:39.3]} 27. Rag1 {[%clk 0:00:18.4]} 27... Bd8 {[%clk 0:02:36.6]} 28.
Nb7 {[%clk 0:00:17.7]} 28... Be7 {[%clk 0:02:27.2]} 29. Bc1 {[%clk 0:00:15.7]}
29... Qd7 {[%clk 0:02:28.2]} 30. Qe1 {[%clk 0:00:10.3]} 30... Qe8 {[%clk
0:02:29.1]} 31. Bd2 {[%clk 0:00:11]} 31... Rh6 {[%clk 0:02:30.3]} 32. Rh2 {[%clk
0:00:11.5]} 32... Rhg6 {[%clk 0:02:27.7]} 33. Rhg2 {[%clk 0:00:12.4]} 33... Qf8
{[%clk 0:02:28.8]} 34. Qe2 {[%clk 0:00:05.2]} 34... Qh6 {[%clk 0:02:29.4]} 35.
Kh2 {[%clk 0:00:04.7]} 35... Qxh3+ {[%clk 0:02:29.6]} 36. Kxh3 {[%clk
0:00:05.6]} 36... Rh6+ {[%clk 0:02:30.8]} 37. Qh5 {[%clk 0:00:02.6]} 37... Rxh5#
{[%clk 0:02:31.6]} 0-1

[Event "*** Titled Tuesday Blitz"]
[Site "Chess.com"]
[Date "2018.05.01"]
[Round "6"]
[White "FMJoseHerrera"]
[Black "Shtembuliak"]
[Result "0-1"]
[WhiteElo "2423"]
[BlackElo "2674"]
[TimeControl "180+2"]
[EndTime "14:19:19 PDT"]
[Termination "Shtembuliak won on time"]

1. Nf3 {[%clk 0:03:01.9]} 1... Nf6 {[%clk 0:02:59.7]} 2. g3 {[%clk 0:03:03.8]}
2... g6 {[%clk 0:03:00.4]} 3. Bg2 {[%clk 0:03:04]} 3... Bg7 {[%clk 0:03:02.3]}
4. O-O {[%clk 0:03:04.6]} 4... O-O {[%clk 0:03:01.8]} 5. d3 {[%clk 0:03:05.5]}
5... d5 {[%clk 0:02:59.5]} 6. c3 {[%clk 0:03:06.4]} 6... c5 {[%clk 0:03:00.4]}
7. a3 {[%clk 0:03:07.1]} 7... b6 {[%clk 0:02:52.6]} 8. b4 {[%clk 0:03:05.7]}
8... Nbd7 {[%clk 0:02:53.6]} 9. Bg5 {[%clk 0:03:04.7]} 9... Bb7 {[%clk
0:02:54.3]} 10. Qc1 {[%clk 0:03:03.9]} 10... Rc8 {[%clk 0:02:54.7]} 11. Bh6
{[%clk 0:03:01.3]} 11... e5 {[%clk 0:02:53.6]} 12. Bxg7 {[%clk 0:03:00.1]} 12...
Kxg7 {[%clk 0:02:54.3]} 13. Nbd2 {[%clk 0:02:48.3]} 13... Qe7 {[%clk 0:02:53]}
14. Ne1 {[%clk 0:02:47.8]} 14... e4 {[%clk 0:02:48.9]} 15. dxe4 {[%clk
0:02:43.6]} 15... dxe4 {[%clk 0:02:48.6]} 16. Nc2 {[%clk 0:01:48.1]} 16... cxb4
{[%clk 0:02:42.9]} 17. axb4 {[%clk 0:01:50]} 17... Rxc3 {[%clk 0:02:42.9]} 18.
Rxa7 {[%clk 0:01:50.7]} 18... Rfc8 {[%clk 0:02:41.9]} 19. Rxb7 {[%clk
0:01:39.9]} 19... Rxc2 {[%clk 0:02:43]} 20. Qd1 {[%clk 0:01:39]} 20... e3 {[%clk
0:02:42.9]} 21. Ne4 {[%clk 0:01:04]} 21... Nxe4 {[%clk 0:02:40.9]} 22. Rxd7
{[%clk 0:00:58.6]} 22... exf2+ {[%clk 0:02:23.8]} 23. Kh1 {[%clk 0:00:59.3]}
23... Qe5 {[%clk 0:02:14.7]} 24. Rd5 {[%clk 0:00:39.1]} 24... Qb2 {[%clk
0:01:50.1]} 25. Bxe4 {[%clk 0:00:15.6]} 25... Rc1 {[%clk 0:01:50.2]} 26. Rxf2
{[%clk 0:00:07.4]} 26... Rxd1+ {[%clk 0:01:47.8]} 27. Rxd1 {[%clk 0:00:09.3]}
27... Qxb4 {[%clk 0:01:47.7]} 28. Kg2 {[%clk 0:00:09.9]} 28... Qxe4+ {[%clk
0:01:47.9]} 0-1

[Event "*** Titled Tuesday Blitz"]
[Site "Chess.com"]
[Date "2018.05.01"]
[Round "6"]
[White "Cruel_Yaro"]
[Black "Er_is_geen_hoop_meer"]
[Result "1/2-1/2"]
[WhiteElo "2630"]
[BlackElo "2356"]
[TimeControl "180+2"]
[EndTime "14:19:36 PDT"]
[Termination "Game drawn by repetition"]

1. a3 {[%clk 0:03:01.9]} 1... g6 {[%clk 0:02:59.5]} 2. e4 {[%clk 0:03:01.8]}
2... Bg7 {[%clk 0:03:00.4]} 3. d4 {[%clk 0:03:03.2]} 3... d6 {[%clk 0:03:01.6]}
4. Nc3 {[%clk 0:03:03.4]} 4... a6 {[%clk 0:03:02]} 5. f4 {[%clk 0:03:03.8]} 5...
b6 {[%clk 0:03:03.2]} 6. Nf3 {[%clk 0:03:03.9]} 6... Bb7 {[%clk 0:03:04.6]} 7.
Bd3 {[%clk 0:03:03]} 7... e6 {[%clk 0:03:05.6]} 8. O-O {[%clk 0:03:02.7]} 8...
Nd7 {[%clk 0:03:06.7]} 9. e5 {[%clk 0:03:03.7]} 9... d5 {[%clk 0:03:07.5]} 10.
Ne2 {[%clk 0:03:03]} 10... c5 {[%clk 0:03:04.6]} 11. c3 {[%clk 0:03:03.7]} 11...
b5 {[%clk 0:03:04.5]} 12. dxc5 {[%clk 0:03:01.5]} 12... Nxc5 {[%clk 0:03:04.7]}
13. Bc2 {[%clk 0:03:02.5]} 13... h5 {[%clk 0:03:03.1]} 14. Be3 {[%clk
0:03:03.3]} 14... Rc8 {[%clk 0:03:03.5]} 15. a4 {[%clk 0:03:01.7]} 15... bxa4
{[%clk 0:03:03.4]} 16. Bxa4+ {[%clk 0:03:00.8]} 16... Nxa4 {[%clk 0:03:02.7]}
17. Qxa4+ {[%clk 0:03:00.8]} 17... Kf8 {[%clk 0:03:02.4]} 18. Ng5 {[%clk
0:02:51]} 18... Ne7 {[%clk 0:03:00.6]} 19. Nd4 {[%clk 0:02:50.3]} 19... Rc4
{[%clk 0:02:59.8]} 20. Ndxe6+ {[%clk 0:02:48.7]} 20... fxe6 {[%clk 0:02:58.2]}
21. Nxe6+ {[%clk 0:02:50.5]} 21... Kf7 {[%clk 0:02:52.6]} 22. Nxd8+ {[%clk
0:02:50.5]} 22... Rxd8 {[%clk 0:02:54.5]} 23. Qb3 {[%clk 0:02:50.9]} 23... Bc8
{[%clk 0:02:53.9]} 24. Qb6 {[%clk 0:02:50.2]} 24... Re8 {[%clk 0:02:49.1]} 25.
Bc5 {[%clk 0:02:50.5]} 25... Nf5 {[%clk 0:02:48.3]} 26. Rfd1 {[%clk 0:02:45.1]}
26... Rxf4 {[%clk 0:02:42.1]} 27. Rxd5 {[%clk 0:02:45.2]} 27... Bxe5 {[%clk
0:02:42.4]} 28. Rxe5 {[%clk 0:02:46.1]} 28... Rxe5 {[%clk 0:02:42]} 29. Qc7+
{[%clk 0:02:46.5]} 29... Kf6 {[%clk 0:02:40.6]} 30. Qxc8 {[%clk 0:02:40]} 30...
Rc4 {[%clk 0:02:41.7]} 31. Bd4 {[%clk 0:02:36.7]} 31... Rxc8 {[%clk 0:02:41.5]}
32. Rxa6+ {[%clk 0:02:36.1]} 32... Kg5 {[%clk 0:02:31.8]} 33. Bxe5 {[%clk
0:02:36.8]} 33... Re8 {[%clk 0:02:33.1]} 34. Ra5 {[%clk 0:02:32.9]} 34... h4
{[%clk 0:02:33.1]} 35. h3 {[%clk 0:02:32.4]} 35... Rd8 {[%clk 0:02:33.5]} 36. b4
{[%clk 0:02:27.8]} 36... Rd2 {[%clk 0:02:34.5]} 37. b5 {[%clk 0:02:05.5]} 37...
Ne3 {[%clk 0:02:31.1]} 38. b6 {[%clk 0:02:06.2]} 38... Rxg2+ {[%clk 0:02:28.6]}
39. Kh1 {[%clk 0:02:06.8]} 39... Rb2 {[%clk 0:02:15.2]} 40. c4 {[%clk
0:02:01.9]} 40... Rb1+ {[%clk 0:02:10.9]} 41. Kh2 {[%clk 0:02:01.6]} 41... Nxc4
{[%clk 0:02:11.6]} 42. Rc5 {[%clk 0:01:36.3]} 42... Nxe5 {[%clk 0:01:59.2]} 43.
Rxe5+ {[%clk 0:01:35.4]} 43... Kf4 {[%clk 0:01:56]} 44. Re6 {[%clk 0:01:35]}
44... g5 {[%clk 0:01:57.1]} 45. Rf6+ {[%clk 0:01:35.5]} 45... Ke5 {[%clk
0:01:57.5]} 46. Rg6 {[%clk 0:01:33.8]} 46... Rb2+ {[%clk 0:01:58.4]} 47. Kg1
{[%clk 0:01:33.9]} 47... Kf4 {[%clk 0:01:59.7]} 48. Kf1 {[%clk 0:01:33.6]} 48...
Rb3 {[%clk 0:01:56]} 49. Kg2 {[%clk 0:01:32.9]} 49... Kf5 {[%clk 0:01:56.5]} 50.
Rc6 {[%clk 0:01:31.8]} 50... Rg3+ {[%clk 0:01:53.9]} 51. Kh2 {[%clk 0:01:31.9]}
51... Rb3 {[%clk 0:01:53.4]} 52. Kg2 {[%clk 0:01:32.5]} 52... Rg3+ {[%clk
0:01:51.7]} 53. Kh2 {[%clk 0:01:32.7]} 53... Rb3 {[%clk 0:01:53.6]} 54. Kg2
{[%clk 0:01:32.7]} 54... Rg3+ {[%clk 0:01:54.4]} 55. Kh2 {[%clk 0:01:32.9]}
55... Rb3 {[%clk 0:01:56.3]} 56. Kg2 {[%clk 0:01:33.6]} 1/2-1/2

[Event "*** Titled Tuesday Blitz"]
[Site "Chess.com"]
[Date "2018.05.01"]
[Round "6"]
[White "bascheyaro"]
[Black "amiralfio"]
[Result "1-0"]
[WhiteElo "2663"]
[BlackElo "2368"]
[TimeControl "180+2"]
[EndTime "14:19:40 PDT"]
[Termination "bascheyaro won by resignation"]

1. d4 {[%clk 0:03:01.9]} 1... Nf6 {[%clk 0:02:55.7]} 2. Nf3 {[%clk 0:03:02.8]}
2... d5 {[%clk 0:02:47.1]} 3. c4 {[%clk 0:03:03.7]} 3... e6 {[%clk 0:02:45]} 4.
Nc3 {[%clk 0:03:04.7]} 4... Bb4 {[%clk 0:02:46]} 5. Bg5 {[%clk 0:03:03]} 5... h6
{[%clk 0:02:46]} 6. Bxf6 {[%clk 0:03:03.1]} 6... Qxf6 {[%clk 0:02:46.7]} 7. e3
{[%clk 0:03:04.7]} 7... O-O {[%clk 0:02:45.5]} 8. Bd3 {[%clk 0:03:05.5]} 8...
dxc4 {[%clk 0:02:46.4]} 9. Bxc4 {[%clk 0:03:06.9]} 9... c5 {[%clk 0:02:47.9]}
10. O-O {[%clk 0:03:06.7]} 10... cxd4 {[%clk 0:02:45.5]} 11. Ne4 {[%clk
0:03:05.8]} 11... Qe7 {[%clk 0:02:44.8]} 12. Nxd4 {[%clk 0:03:05.9]} 12... Bd7
{[%clk 0:02:43.2]} 13. a3 {[%clk 0:03:04.9]} 13... Ba5 {[%clk 0:02:38.9]} 14. b4
{[%clk 0:02:58.7]} 14... Bb6 {[%clk 0:02:37.3]} 15. Nb3 {[%clk 0:02:57.9]} 15...
Bc6 {[%clk 0:02:28.5]} 16. Qb1 {[%clk 0:02:52.9]} 16... f5 {[%clk 0:02:19.2]}
17. Nec5 {[%clk 0:02:53.6]} 17... Qg5 {[%clk 0:02:05.1]} 18. e4 {[%clk
0:02:53.9]} 18... Rf6 {[%clk 0:01:50.7]} 19. Nxe6 {[%clk 0:02:53.4]} 19... Rxe6
{[%clk 0:01:51.2]} 20. Bxe6+ {[%clk 0:02:54.2]} 20... Kh8 {[%clk 0:01:52.8]} 21.
Bxf5 {[%clk 0:02:50.1]} 21... Nd7 {[%clk 0:01:51.4]} 22. Qd3 {[%clk 0:02:34.8]}
22... Ne5 {[%clk 0:01:40.2]} 23. Qg3 {[%clk 0:02:35.9]} 23... Qf6 {[%clk
0:01:41]} 24. Na5 {[%clk 0:02:27.6]} 24... Bb5 {[%clk 0:01:39]} 25. Rfd1 {[%clk
0:02:24.2]} 25... Nd3 {[%clk 0:01:39.6]} 26. Ra2 {[%clk 0:02:19.5]} 26... Rd8
{[%clk 0:01:32]} 27. Rad2 {[%clk 0:02:18.8]} 27... Ba4 {[%clk 0:01:19.2]} 28.
Rf1 {[%clk 0:02:01.9]} 28... Nxf2 {[%clk 0:01:06.5]} 29. Rdxf2 {[%clk
0:02:02.7]} 29... Bb5 {[%clk 0:00:51.8]} 30. Nxb7 {[%clk 0:02:02.3]} 30... Rd2
{[%clk 0:00:48.8]} 31. Qb8+ {[%clk 0:02:00.4]} 31... Rd8 {[%clk 0:00:45.6]} 32.
Nxd8 {[%clk 0:02:00.7]} 32... Bxf2+ {[%clk 0:00:46]} 33. Kxf2 {[%clk 0:01:58.7]}
33... Qd4+ {[%clk 0:00:16.6]} 34. Kg3 {[%clk 0:01:59.8]} 34... Qe3+ {[%clk
0:00:16.3]} 35. Rf3 {[%clk 0:02:01]} 35... Qg5+ {[%clk 0:00:17.5]} 36. Bg4
{[%clk 0:02:01.8]} 36... Kh7 {[%clk 0:00:15.8]} 37. Nf7 {[%clk 0:02:02.6]} 37...
Qe7 {[%clk 0:00:15.2]} 38. Bf5+ {[%clk 0:02:02.8]} 1-0